{"text_format":"1","workbook":"xlsx","n_sheets":2,"sheets":["Лист для печати","Лист для ввода"],"not_rendered":{"charts":0,"images":1,"macros":1,"external_links":1,"defined_names":2,"comments":0,"pivot_tables":0},"unopened":[],"bounds":{"document_bytes":16777216,"sheet_cells":100000,"rows_first":2000,"rows_last":500,"rows_between":2000,"halvings":0,"cell_chars":16384,"cell_head_chars":4096},"cells_cut":0,"cells_raw":0,"read":"whole","date_system":"1900"}

{"sheet":"Лист для печати","index":0,"n_rows":113,"n_cols":13,"rows_kept":113,"cut":false,"hidden":false,"merged":[[0,2,0,9],[16,1,16,2],[16,3,16,4],[16,5,16,6],[16,7,16,8],[1,6,1,8],[2,6,2,9],[4,0,4,9],[5,0,5,9],[6,0,6,9],[7,0,7,9],[8,0,8,9],[9,0,9,9],[10,0,10,9],[11,0,11,9],[12,0,12,9],[13,0,13,9],[15,0,17,0],[15,1,15,8],[15,9,17,9]]}
[null,null,"Включить содержимое.\nКнопку нажимать только после того, как \"Лист для ввода\" полностью заполнен.\nВ конце данного листа вставить данные для подписи."]
[null,null,null,null,null,null,"Ежеквартально, до 20 числа месяца, следующего за отчетным кварталом"]
[null,null,null,null,null,null,"на эл. адрес: monitor@krasnodar.ru"]
[]
["ОТЧЕТ "]
["о результативности предоставления межбюджетных трансфертов местным бюджетам\nмуниципальных образований Краснодарского края в рамках реализации \nгосударственной программы Краснодарского края"]
["\"Развитие сельского хоозяйства и регулирование рынков сельскохозяйственной продукции, сырья и продовольствия\""]
["(наименование государственной программы)"]
["\"Обеспечение эпизоотического, ветеринарно- санитарного благополучия в Краснодарском крае и развитие государственной ветеринарной службы Краснодарского края\""]
["(наименование подпрограммы государственной программы)"]
["Субвенции на осуществление государственных полномочий по предупреждению и ликвидации болезней животных, их лечению, отлову и содержанию безнадзорных животных, защите населения от болезней, общих для человека и животных в части регулирования численности безнадзорных животных на территории муниципальных образований Краснодарского края"]
["(наименование межбюджетного трансферта)"]
["9 месяцев 2018 год"]
["(за I квартал, первое полугодие, 9 месяцев, год)"]
[]
["Наименование муниципального образования (получателя межбюджетного трансферта)","Наименование показателя результативности предоставления межбюджетного трансферта (с указанием единицы измерения)",null,null,null,null,null,null,null,"Причины недостижения показателя результативности"]
[null,"численность отловленных и содержавшихся безнадзорных животных,ед.",null,"2.",null,"3.",null,"4."]
[null,"Плановое значение","Фактическое значение","Плановое значение","Фактическое значение","Плановое значение","Фактическое значение","Плановое значение","Фактическое значение"]
[1,2,3,4,5,6,7,8,9,10]
["город-курорт Анапа ",624,null,null,null,null,null,null,null,"Проведено четыре эл.аукциона  в апреле,июне, июле, августе 2018 года.  Признаны несостоявшимися по причине отсутствия заявок от участников.",null,"Проведено четыре эл.аукционов  в апреле,июне, июле, августе 2018 года.  Признаны несостоявшимися по причине отсутствия заявок от участников.","город-курорт Анапа "]
["город Армавир ",182,null,null,null,null,null,null,null,"Соглашение не заключено",null,null,"город Армавир "]
["город-курорт Геленджик ",302,null,null,null,null,null,null,null,"Заключены муниципальные контракты: № 06/00 от 01.06.18 с МУП  благоустройства и хозяйственного обеспечения  МО город-курорт Геленджик на сумму 96 900,00 руб., № 06/01 от 01.06.18  с  МУП  благоустройства и хозяйственного обеспечения  МО город-курорт Геленджик на сумму 92 500,00 ру б. Оплата проводится по факту выполненных услуг.Срок исполнения услуг до 25.12.18 г. ",null,"Заключены муниципальные контракты: № 06/00 от 01.06.18 с МУП  благоустройства и хозяйственного обеспечения  МО город-курорт Геленджик на сумму 96 900,00 руб., № 06/01 от 01.06.18  с  МУП  благоустройства и хозяйственного обеспечения  МО город-курорт Геленджик на сумму 92 500,00 ру б. Оплата проводится по факту выполненных услуг.Срок исполнения услуг до 25.12.18 г. ","город-курорт Геленджик "]
["город Горячий Ключ ",285,null,null,null,null,null,null,null,"Освоение субвенции планируется осуществить методом закупки на конкурентной основе. Внесение изменений в план график закупок планируется на 11 октября 2018 года.",null,"Освоение субвенции планируется осуществить методом закупки на конкурентной основе. Внесение изменений в план график закупок планируется на 11 октября 2018 года.","город Горячий Ключ "]
["город Краснодар ",2202,null,null,null,null,null,null,null,"Внесены изменения в план-график размещения закупок. Заключен МК   с ООО \"Ремонтно-производственная фирмв \"Бастилия\" от 16.07.18 № 0318300119418000786-62539. Предполагаемые сроки освоения субвенции  4-й кв.2018 г.",null,"Внесены изменения в план-график размещения закупок. Заключен МК   с ООО \"Ремонтно-производственная фирмв \"Бастилия\" от 16.07.18 № 0318300119418000786-62539. Предполагаемые сроки освоения субвенции  4-й кв.2018 г.","город Краснодар "]
["город Новороссийск ",148,124,null,null,null,null,null,null,"30.05.18 г проведен эл.аукцион. Заключен  контракт № 142/06-18 от 13.06.18 г с МУП \"Полигон\" на сумму 172 115,00 руб.",null,"30.05.18 г проведен эл.аукцион. Заключен  контракт № 142/06-18 от 13.06.18 г с МУП \"Полигон\" на сумму 172 115,00 руб.","город Новороссийск "]
["город-курорт Сочи ",2419,null,null,null,null,null,null,null,"Подготовлены необходимые пакеты документов для размещения их на оф.сайте для осуществления закупок . По окончании указанных в извещениях сроков подачи заявок на участие в аукционах в эл.форме не поступило ни одной заявки.Электронные аукционы признаны несостоявшимися.",null,"Подготовлены необходимые пакеты документов для размещения их на оф.сайте для осуществления закупок . По окончании указанных в извещениях сроков подачи заявок на участие в аукционах в эл.форме не поступило ни одной заявки.Электронные аукционы признаны несостоявшимися.","город-курорт Сочи "]
["Абинский район,\nвсего район и поселения",19,0,0,0,0,0,0,0,"В связи с низкой нормативной стоимостью услуг по отлову и содержанию безнадзорных животных не нашлось исполнителя оказания услуг.",null,"В связи с низкой нормативной стоимостью услуг по отлову и содержанию безнадзорных животных не нашлось исполнителя оказания услуг.","Абинский район,\nвсего район и поселения"]
["Абинский район ",19,null,null,null,null,null,null,null,null,null,null,"Абинский район "]
["Апшеронский район,\nвсего район и поселения",37,37,0,0,0,0,0,0,"По итогам запроса котировок заключен МК № 95 от 08.06.18 с ИП Колосовой Екатериной Александровной на сумму 44 400,00 руб.  на отлов  безнадзорных животных . Запрос котировок на услуги по содержанию безнадзорных животных признан несостоявшимся по причине отсутствия заявок на участие (протокол № 0818300022718000138 от 31.05.18). Внесены изменения в план закупок и план-график закупок в части оставшихся средств. Результаты торгов будут известны в 4 кв.2018 г.",null,"По итогам запроса котировок заключен МК № 95 от 08.06.18 с ИП Колосовой Екатериной Александровной на сумму 44 400,00 руб.  на отлов  безнадзорных животных . Запрос котировок на услуги по содержанию безнадзорных животных признан несостоявшимся по причине отсутствия заявок на участие (протокол № 0818300022718000138 от 31.05.18). Внесены изменения в план закупок и план-график закупок в части оставшихся средств. Результаты торгов будут известны в 4 кв.2018 г.","Апшеронский район,\nвсего район и поселения"]
["Апшеронский район",37,37,null,null,null,null,null,null,null,null,null,"Апшеронский район"]
["Белоглинский район,\nвсего район и поселения ",13,0,0,0,0,0,0,0,"Ведется работа по подбору коммерческих предложений для проведения эл.аукциона.Коммерческие предложения не поступили. В связи с вышеизложенным проведение эл.аукциона не предоставляется возможным.",null,"Ведется работа по подбору коммерческих предложений для проведения эл.аукциона.Коммерческие предложения не поступили. В связи с вышеизложенным проведение эл.аукциона не предоставляется возможным.","Белоглинский район,\nвсего район и поселения "]
["Белоглинский район",13,null,null,null,null,null,null,null,null,null,null,"Белоглинский район"]
["Белореченский район,\nвсего район и поселения",157,0,0,0,0,0,0,0,"Проведен эл.аукцион. Согласно протоколу № 236А от 18.06.18  признан несостоявшимся по причине отсутствия заявок от участников.",null,"Проведен эл.аукцион. Согласно протоколу № 236А от 18.06.18  признан несостоявшимся по причине отсутствия заявок от участников.","Белореченский район,\nвсего район и поселения"]
["Белореченский район",157,null,null,null,null,null,null,null,null,null,null,"Белореченский район"]
["Брюховецкий район,\nвсего район и поселения",5,0,0,0,0,0,0,0,"Повторно размещено извещение о проведении запроса котировок № 0118300003118000107 от 26.09.18. Сроки окончания приема заявок 3.10.18",null,"Повторно размещено извещение о проведении запроса котировок № 0118300003118000107 от 26.09.18. Сроки окончания приема заявок 3.10.18","Брюховецкий район,\nвсего район и поселения"]
["Брюховецкий район",5,null,null,null,null,null,null,null,null,null,null,"Брюховецкий район"]
["Выселковский район,\nвсего район и поселения",12,0,0,0,0,0,0,0,"Дважды размещено на официальном сайте  извещение о проведении запроса котировок. Запрос котировок в обоих случаях  признан несостоявшимся  по причине отсутствия заявок от участников.",null,"Дважды размещено на официальном сайте  извещение о проведении запроса котировок. Запрос котировок в обоих случаях  признан несостоявшимся  по причине отсутствия заявок от участников.","Выселковский район,\nвсего район и поселения"]
["Выселковский район",12,null,null,null,null,null,null,null,null,null,null,"Выселковский район"]
["Гулькевичский район,\nвсего район и поселения",252,0,0,0,0,0,0,0,"Проведено  размещение извещения и документации о проведении эл.аукциона. Администрацией МО было принято  решение  ( 4 раза) о продлении срока подачи заявок от участников.",null,"Проведено  размещение извещения и документации о проведении эл.аукциона. Администрацией МО было принято  решение  ( 4 раза) о продлении срока подачи заявок от участников.","Гулькевичский район,\nвсего район и поселения"]
["Гулькевичский район",252,null,null,null,null,null,null,null,null,null,null,"Гулькевичский район"]
["Динской район,\nвсего район и поселения",252,0,0,0,0,0,0,0,"Заключен МК  № 246 от 04.09.18 с ИП Колосовой Екатериной Александровной на сумму 332640,00 руб.",null,"Заключен МК  № 246 от 04.09.18 с ИП Колосовой Екатериной Александровной на сумму 332640,00 руб.","Динской район,\nвсего район и поселения"]
["Динской район",252,null,null,null,null,null,null,null,null,null,null,"Динской район"]
["Ейский район,\nвсего район и поселения",374,0,0,0,0,0,0,0,"Вносятся изменения в бюджетную роспись, план закупок, план-график. Проведение эл.аукциона запланировано  на октябрь 2018 года.",null,"Вносятся изменения в бюджетную роспись, план закупок, план-график. Проведение эл.аукциона запланировано  на октябрь 2018 года.","Ейский район,\nвсего район и поселения"]
["Ейский район",374,null,null,null,null,null,null,null,null,null,null,"Ейский район"]
["Кавказский район,\nвсего район и поселения",334,0,0,0,0,0,0,0,"Внесены изменения в план-график размещения закупок. Предполагаемые сроки освоения субвенции  4-й кв.2018 г.",null,"Внесены изменения в план-график размещения закупок. Предполагаемые сроки освоения субвенции  4-й кв.2018 г.","Кавказский район,\nвсего район и поселения"]
["Кавказский район",334,null,null,null,null,null,null,null,null,null,null,"Кавказский район"]
["Калининский район,\nвсего район и поселения",9,0,0,0,0,0,0,0,"В результате проведенного мониторинга стоимости услуг, согласно коммерческим предложениям составила 1600 руб.за одну голову.",null,"В результате проведенного мониторинга стоимости услуг, согласно коммерческим предложениям составила 1600 руб.за одну голову.","Калининский район,\nвсего район и поселения"]
["Калининский район",9,null,null,null,null,null,null,null,null,null,null,"Калининский район"]
["Каневской район,\nвсего район и поселения",41,0,0,0,0,0,0,0,"Документы на  проведения эл.аукциона подготовлены, начальная (максимальная) цена контракта определена тарифным методом. Проведен аукцион в эл.форме. Заключен МК № 0318300009618000104-0091903-01 от 20.08.18 на сумму 42400,00 руб. МК был расторгнут по взаимному согласию сторон 27.09.18 г. В октябре 2018 года планируется заключение прямого договора .",null,"Документы на  проведения эл.аукциона подготовлены, начальная (максимальная) цена контракта определена тарифным методом. Проведен аукцион в эл.форме. Заключен МК № 0318300009618000104-0091903-01 от 20.08.18 на сумму 42400,00 руб. МК был расторгнут по взаимному согласию сторон 27.09.18 г. В октябре 2018 года планируется заключение прямого договора .","Каневской район,\nвсего район и поселения"]
["Каневской район",41,null,null,null,null,null,null,null,null,null,null,"Каневской район"]
["Кореновский район,\nвсего район и поселения",252,0,0,0,0,0,0,0," Заключен МК № Ф.2018.426611 от 10.09.18 с ИП Е.А. Колосовой.  МК по соглашению сторон был расторгнут от 21.09.18 г.Внесены изменения в план-график для повторного  размещения закупки путем запроса котировок.",null," Заключен МК № Ф.2018.426611 от 10.09.18 с ИП Е.А. Колосовой.  МК по соглашению сторон был расторгнут от 21.09.18 г.Внесены изменения в план-график для повторного  размещения закупки путем запроса котировок.","Кореновский район,\nвсего район и поселения"]
["Кореновский район",252,null,null,null,null,null,null,null,null,null,null,"Кореновский район"]
["Красноармейский район,\nвсего район и поселения",135,0,0,0,0,0,0,0,"В результате проведенного мониторинга стоимости услуг, согласно коммерческим предложениям цена высокая.",null,"В результате проведенного мониторинга стоимости услуг, согласно коммерческим предложениям цена высокая.","Красноармейский район,\nвсего район и поселения"]
["Красноармейский район",135,null,null,null,null,null,null,null,null,null,null,"Красноармейский район"]
["Крыловский район,\nвсего район и поселения",81,0,0,0,0,0,0,0,"Проведение закупки в соответствии с планом- графиком закупок запланировано на  октябрь месяц 2018 года. Определяется начальная максимальная цена контракта.",null,"Проведение закупки в соответствии с планом- графиком закупок запланировано на  октябрь месяц 2018 года. Определяется начальная максимальная цена контракта.","Крыловский район,\nвсего район и поселения"]
["Крыловский район",81,null,null,null,null,null,null,null,null,null,null,"Крыловский район"]
["Крымский район,\nвсего район и поселения",56,0,0,0,0,0,0,0,"Запрос котировок признан несостоявшимся по причине отсутствия заявок от участников.",null,"Запрос котировок признан несостоявшимся по причине отсутствия заявок от участников.","Крымский район,\nвсего район и поселения"]
["Крымский район",56,null,null,null,null,null,null,null,null,null,null,"Крымский район"]
["Курганинский район,\nвсего район и поселения",61,0,0,0,0,0,0,0,"8 мая был опубликован эл.аукцион, 19 июля  был опубликован повторный эл. аукцион.По окончании срока подачи заявок, на участие в аукционе заявок не поступило. В октябре 2018 г. планируется опубликовать третий эл.аукцион..",null,"8 мая опубликован эл.аукцион. Исполнителей заявлено не было. В июле месяце планируется повторный эл. аукцион.По окончании срока подачи заявок, на участие в аукционе заявок не поступило. В октябре 2018 г. планируется опубликовать третий эл.аукцион.","Курганинский район,\nвсего район и поселения"]
["Курганинский район",61,null,null,null,null,null,null,null,null,null,null,"Курганинский район"]
["Кущевский район,\nвсего район и поселения",34,0,0,0,0,0,0,0,"Внесены изменения в план-график размещения закупок. Объявлены два запроса котировок № 0318300025818000016 от 24.07.18, № 0318300025818000017 от 30.08.18. Предпологаемые сроки использования субвенций- 4 кв.2018 года.",null,"Внесены изменения в план-график размещения закупок. Объявлены два запроса котировок № 0318300025818000016 от 24.07.18, № 0318300025818000017 от 30.08.18. Предпологаемые сроки использования субвенций- 4 кв.2018 года.","Кущевский район,\nвсего район и поселения"]
["Кущевский район",34,null,null,null,null,null,null,null,null,null,null,"Кущевский район"]
["Лабинский район,\nвсего район и поселения",15,0,0,0,0,0,0,0,"В результате проведенного мониторинга стоимости услуг, согласно коммерческим предложениям составила 1600 руб.за одну голову.Субвенция не освоена, так как выделенная субвенция крайне недостаточна для выполнения требуемого комплекса работ.",null,"В результате проведенного мониторинга стоимости услуг, согласно коммерческим предложениям составила 1600 руб.за одну голову.Субвенция не освоена, так как выделенная субвенция крайне недостаточна для выполнения требуемого комплекса работ.","Лабинский район,\nвсего район и поселения"]
["Лабинский район",15,null,null,null,null,null,null,null,null,null,null,"Лабинский район"]
["Ленинградский район,\nвсего район и поселения",117,0,0,0,0,0,0,0,"Размещены извещения о проведении закупки № 0318300422718000058 от 10.07.18, № 0318300422718000082 от 03.09.18. По результатам которых запрос котировок признаны несостоявшимися.",null,"Размещены извещения о проведении закупки № 0318300422718000058 от 10.07.18, № 0318300422718000082 от 03.09.18. По результатам которых запрос котировок признаны несостоявшимися.","Ленинградский район,\nвсего район и поселения"]
["Ленинградский район",117,null,null,null,null,null,null,null,null,null,null,"Ленинградский район"]
["Мостовский район,\nвсего район и поселения",23,0,0,0,0,0,0,0,"Ведется работа по подбору коммерческих предложений для проведения эл.аукциона. Организовано проведение конкурсной процедуры, извещение о проведении запроса котировок бало разещено на оф.сайте  28.09.18 г. № 0818600004218000259. Прием заявок на участие заканчивается 5 октября 2018 года.",null,"Ведется работа по подбору коммерческих предложений для проведения эл.аукциона. Организовано проведение конкурсной процедуры, извещение о проведении запроса котировок бало разещено на оф.сайте  28.09.18 г. № 0818600004218000259. Прием заявок на участие заканчивается 5 октября 2018 года.","Мостовский район,\nвсего район и поселения"]
["Мостовский район",23,null,null,null,null,null,null,null,null,null,null,"Мостовский район"]
["Новокубанский район,\nвсего район и поселения",130,0,0,0,0,0,0,0,"Ведется работа по подбору коммерческих предложений для проведения эл.аукциона. На основании представленных коммерческий предложений провести эл. аукцион не предоставляется возможным. По причине отсутствия пунктов временного содержания животных. ",null,"Ведется работа по подбору коммерческих предложений для проведения эл.аукциона. На основании представленных коммерческий предложений провести эл. аукцион не предоставляется возможным. По причине отсутствия пунктов временного содержания животных. ","Новокубанский район,\nвсего район и поселения"]
["Новокубанский район",130,null,null,null,null,null,null,null,null,null,null,"Новокубанский район"]
["Новопокровский район,\nвсего район и поселения",10,0,0,0,0,0,0,0," Отсутствие заявок от  населения на выполнение работ по отлову безнадзорных животных.",null," Отсутствие заявок от  населения на выполнение работ по отлову безнадзорных животных.","Новопокровский район,\nвсего район и поселения"]
["Новопокровский район",10,null,null,null,null,null,null,null,null,null,null,"Новопокровский район"]
["Отрадненский район,\nвсего район и поселения",20,0,0,0,0,0,0,0,"Внесены изменения в план-график размещения закупок. Размещено извещение о проведении эл.аукциона от 31.08.18 г. Аукцион признан несостоявшимся, по окончании  не поступило ни одной заявки. В октябре  планируется повторно разместить извещение о проведении эл.аукциона.",null,"Внесены изменения в план-график размещения закупок. Размещено извещение о проведении эл.аукциона от 31.08.18 г. Аукцион признан несостоявшимся, по окончании  не поступило ни одной заявки. В октябре  планируется повторно разместить извещение о проведении эл.аукциона.","Отрадненский район,\nвсего район и поселения"]
["Отрадненский район",20,null,null,null,null,null,null,null,null,null,null,"Отрадненский район"]
["Павловский район,\nвсего район и поселения",59,0,0,0,0,0,0,0,"На текущую дату документы для проведения аукциона в эл.форме опубликованы на сайте. Аукцион состоится 11 октября 2018 г.",null,"На текущую дату документы для проведения аукциона в эл.форме опубликованы на сайте. Аукцион состоится 11 октября 2018 г.","Павловский район,\nвсего район и поселения"]
["Павловский район",59,null,null,null,null,null,null,null,null,null,null,"Павловский район"]
["Приморско-Ахтарский район,\nвсего район и поселения",74,0,0,0,0,0,0,0,"31 мая 2018 г размещен план- график закупок.31 мая 2018 г размещен план-график закупок. Заключены МК № 61 от 07.09.18 на сумму 97 799,56 руб., № 62 от 07.09.18 на сумму 97799,56 с ИП Е.А. Колосовой на оказание услуг по отлову и содержанию безнадзорных животных.",null,"31 мая 2018 г размещен план- график закупок.","Приморско-Ахтарский район,\nвсего район и поселения"]
["Приморско-Ахтарский район",74,null,null,null,null,null,null,null,null,null,null,"Приморско-Ахтарский район"]
["Северский район,\nвсего район и поселения",109,0,0,0,0,0,0,0,"В течение полугодия 2018 года роводилась работа по определению исполнителя. На  отчетную дату исполнителем является ИП Е.А.Колосова. Контракт направлен исполнителю для подписания.",null,"В течение полугодия 2018 года роводилась работа по определению исполнителя. На  отчетную дату исполнителем является ИП Е.А.Колосова. Контракт направлен исполнителю для подписания.","Северский район,\nвсего район и поселения"]
["Северский район",109,null,null,null,null,null,null,null,null,null,null,"Северский район"]
["Славянский район,\nвсего район и поселения",316,0,0,0,0,0,0,0,"В настоящее время проводится прием котировочных заявок на определение  исполнителя муниципального контракта.",null,"В настоящее время проводится прием котировочных заявок на определение  исполнителя муниципального контракта.","Славянский район,\nвсего район и поселения"]
["Славянский район",316,null,null,null,null,null,null,null,null,null,null,"Славянский район"]
["Староминский район,\nвсего район и поселения",101,0,0,0,0,0,0,0,"Соглашение не заключено",null,null,"Староминский район,\nвсего район и поселения"]
["Староминский район",101,null,null,null,null,null,null,null,null,null,null,"Староминский район"]
["Тбилисский район,\nвсего район и поселения",44,0,0,0,0,0,0,0,"Заключение муниципального контракта не предоставляется возможным по причине отсутствия  пунктов временного содержания безнадзорных животных. Подготовлен пакет документов  на оказание услуг по отлову безнадзорных животных на участие в эл.аукционе. Проведение которого запланировано на первую декаду октября 2018 г.",null,"Заключение муниципального контракта не предоставляется возможным по причине отсутствия  пунктов временного содержания безнадзорных животных. Подготовлен пакет документов  на оказание услуг по отлову безнадзорных животных на участие в эл.аукционе. Проведение которого запланировано на первую декаду октября 2018 г.","Тбилисский район,\nвсего район и поселения"]
["Тбилисский район",44,null,null,null,null,null,null,null,null,null,null,"Тбилисский район"]
["Темрюкский район,\nвсего район и поселения",176,0,0,0,0,0,0,0,"Соглашение не заключено",null,null,"Темрюкский район,\nвсего район и поселения"]
["Темрюкский район",176,null,null,null,null,null,null,null,null,null,null,"Темрюкский район"]
["Тимашевский район,\nвсего район и поселения",165,0,0,0,0,0,0,0,"Ведется работа по внесению соответствующих изменений в муниципальную программу.",null,"Ведется работа по внесению соответствующих изменений в муниципальную программу.","Тимашевский район,\nвсего район и поселения"]
["Тимашевский район",165,null,null,null,null,null,null,null,null,null,null,"Тимашевский район"]
["Тихорецкий район,\nвсего район и поселения",164,0,0,0,0,0,0,0,"15 мая ,14 июня,30 июля,27 августа,28 сентября 2018 размещена закупка. Заявок от поставщиков на участие в эл.аукционе не поступало.Размещение заявок планируется    администрацией ежемесячно до определения победителя.",null,"15 мая ,14 июня,30 июля,27 августа,28 сентября 2018 размещена закупка. Заявок от поставщиков на участие в эл.аукционе не поступало.Размещение заявок планируется    администрацией ежемесячно до определения победителя.","Тихорецкий район,\nвсего район и поселения"]
["Тихорецкий район",164,null,null,null,null,null,null,null,null,null,null,"Тихорецкий район"]
["Туапсинский район,\nвсего район и поселения",847,0,0,0,0,0,0,0," 21 июня 2018 размещена закупка. Заявок от поставщиков на участие в эл.аукционе не поступало. Аукцион признан несостоявшимся.",null," 21 июня 2018 размещена закупка. Заявок от поставщиков на участие в эл.аукционе не поступало. Аукцион признан несостоявшимся.","Туапсинский район,\nвсего район и поселения"]
["Туапсинский район",847,null,null,null,null,null,null,null,null,null,null,"Туапсинский район"]
["Успенский район,\nвсего район и поселения",15,0,0,0,0,0,0,0,"Внесены изменения в план-график размещения закупок",null,"Внесены изменения в план-график размещения закупок","Успенский район,\nвсего район и поселения"]
["Успенский район",15,null,null,null,null,null,null,null,null,null,null,"Успенский район"]
["Усть-Лабинский район,\nвсего район и поселения",215,0,0,0,0,0,0,0,"Ведется работа по подготовке  документация для участия в аукционе.",null,"Ведется работа по подготовке  документация для участия в аукционе.","Усть-Лабинский район,\nвсего район и поселения"]
["Усть-Лабинский район",215,null,null,null,null,null,null,null,null,null,null,"Усть-Лабинский район"]
["Щербиновский район,\nвсего район и поселения",32,0,0,0,0,0,0,0,"Готовятся изменения в план-график размещения закупок. ",null,"Готовятся изменения в план-график размещения закупок. ","Щербиновский район,\nвсего район и поселения"]
["Щербиновский район",32]
["Всего:",10918,161]
[]
["Руководитедь",null,"Р.А. Кривонос"]
[]
[]
["Зам.руководителя",null,"Д.В. Нитовкин"]
[]
["Главный бухгалтер",null,"Н.В. Егорова"]
[]
["Начальник отдела",null,"Д.В. Коломиец"]
[]
[]
["исполнитель: И.И. Белецкая, тел.267-17-50"]

{"sheet":"Лист для ввода","index":1,"n_rows":493,"n_cols":13,"rows_kept":493,"cut":false,"hidden":false,"merged":[[15,11,16,11],[15,12,16,12],[490,0,490,2],[483,0,483,9],[4,0,4,9],[15,0,17,0],[15,1,15,8],[15,9,17,9],[16,1,16,2],[16,3,16,4],[16,5,16,6],[16,7,16,8],[7,0,7,9],[8,0,8,9],[9,0,9,9],[10,0,10,9],[11,0,11,9],[488,0,488,9],[0,7,0,9],[5,0,5,9],[6,0,6,9],[484,0,484,9],[487,0,487,9],[12,0,12,9],[13,0,13,9],[485,0,485,9],[486,0,486,9]]}
[null,null,null,null,null,null,null,"Ежеквартально, до 20 числа месяца, следующего за отчетным кварталом"]
[null,null,null,null,null,null,null,"на эл. адрес: monitor@krasnodar.ru"]
[]
[]
["ОТЧЕТ1)"]
["о результативности предоставления межбюджетных трансфертов местным бюджетам\nмуниципальных образований Краснодарского края в рамках реализации \nгосударственной программы Краснодарского края  \"Развитие сельского хозяйства и регулирование рынков сельскохозяйственной продукции, сырья и продовольствия\""]
[{"$f":"'[1]Лист для ввода'!A7:N7","v":"(наименование государственной программы)"}]
[{"$f":"'[1]Лист для ввода'!A8:N8","v":"\"Обеспечение эпизоотического, ветеринарно-санитарного благополучия в Краснодарском крае и развитие государственной ветеринарной службы Краснодарского края\""}]
[{"$f":"'[1]Лист для ввода'!A9:N9","v":"(наименование подпрограммы государственной программы)"}]
[{"$f":"'[1]Лист для ввода'!A10:N10","v":"Субвенции на осуществление государственных полномочий по предупреждению и ликвидации болезней животных, их лечению, отлову и содержанию безнадзорных животных, защите населения от болезней, общих для человека и животных в части регулирования численности безнадзорных животных на территории муниципальных образований Краснодарского края"}]
[{"$f":"'[1]Лист для ввода'!A11:N11","v":"(наименование межбюджетного трансферта)"}]
["9 месяцев 2018 год"]
[{"$f":"'[1]Лист для ввода'!A13:N13","v":"(за I квартал, первое полугодие, 9 месяцев, год)"}]
[]
[]
["Наименование муниципального образования (получателя межбюджетного трансферта)","Наименование показателя результативности предоставления межбюджетного трансферта2) (с указанием единицы измерения)",null,null,null,null,null,null,null,"Причины недостижения показателя результативности3)",null,"Причины неосвоения","Наименование муниципального образования – получателя межбюджетного трансферта"]
[null,"1.Численность отловленных и содержавшихся безнадзорных животных, ед.",null,"2.",null,"3.",null,"4."]
[null,"Плановое значение2)","Фактическое значение","Плановое значение2)","Фактическое значение","Плановое значение2)","Фактическое значение","Плановое значение2)","Фактическое значение",null,null,14,1]
[1,2,3,4,5,6,7,8,9,10,null,"Х","ВСЕГО\nпредусмотрено уточненной бюджетной росписью"]
["город-курорт Анапа ",624,null,null,null,null,null,null,null,"Проведено четыре эл.аукционов  в апреле,июне, июле, августе 2018 года.  Признаны несостоявшимися по причине отсутствия заявок от участников.",null,"Проведено четыре эл.аукционов  в апреле,июне, июле, августе 2018 года.  Признаны несостоявшимися по причине отсутствия заявок от участников.","город-курорт Анапа "]
["город Армавир ",182,null,null,null,null,null,null,null,null,null,null,"город Армавир "]
["город-курорт Геленджик ",302,null,null,null,null,null,null,null,"Заключены муниципальные контракты: № 06/00 от 01.06.18 с МУП  благоустройства и хозяйственного обеспечения  МО город-курорт Геленджик на сумму 96 900,00 руб., № 06/01 от 01.06.18  с  МУП  благоустройства и хозяйственного обеспечения  МО город-курорт Геленджик на сумму 92 500,00 ру б. Оплата проводится по факту выполненных услуг.Срок исполнения услуг до 25.12.18 г. ",null,"Заключены муниципальные контракты: № 06/00 от 01.06.18 с МУП  благоустройства и хозяйственного обеспечения  МО город-курорт Геленджик на сумму 96 900,00 руб., № 06/01 от 01.06.18  с  МУП  благоустройства и хозяйственного обеспечения  МО город-курорт Геленджик на сумму 92 500,00 ру б. Оплата проводится по факту выполненных услуг.Срок исполнения услуг до 25.12.18 г. ","город-курорт Геленджик "]
["город Горячий Ключ ",285,null,null,null,null,null,null,null,"Освоение субвенции планируется осуществить методом закупки на конкурентной основе. Внесение изменений в план график закупок планируется на 11 октября 2018 года.",null,"Освоение субвенции планируется осуществить методом закупки на конкурентной основе. Внесение изменений в план график закупок планируется на 11 октября 2018 года.","город Горячий Ключ "]
["город Краснодар ",2202,null,null,null,null,null,null,null,"Внесены изменения в план-график размещения закупок. Заключен МК   с ООО \"Ремонтно-производственная фирмв \"Бастилия\" от 16.07.18 № 0318300119418000786-62539. Предполагаемые сроки освоения субвенции  4-й кв.2018 г.",null,"Внесены изменения в план-график размещения закупок. Заключен МК   с ООО \"Ремонтно-производственная фирмв \"Бастилия\" от 16.07.18 № 0318300119418000786-62539. Предполагаемые сроки освоения субвенции  4-й кв.2018 г.","город Краснодар "]
["город Новороссийск ",148,124,null,null,null,null,null,null,"30.05.18 г проведен эл.аукцион. Заключен  контракт № 142/06-18 от 13.06.18 г с МУП \"Полигон\" на сумму 172 115,00 руб.",null,"30.05.18 г проведен эл.аукцион. Заключен  контракт № 142/06-18 от 13.06.18 г с МУП \"Полигон\" на сумму 172 115,00 руб.","город Новороссийск "]
["город-курорт Сочи ",2419,null,null,null,null,null,null,null,"Подготовлены необходимые пакеты документов для размещения их на оф.сайте для осуществления закупок . По окончании указанных в извещениях сроков подачи заявок на участие в аукционах в эл.форме не поступило ни одной заявки.Электронные аукционы признаны несостоявшимися.",null,"Подготовлены необходимые пакеты документов для размещения их на оф.сайте для осуществления закупок . По окончании указанных в извещениях сроков подачи заявок на участие в аукционах в эл.форме не поступило ни одной заявки.Электронные аукционы признаны несостоявшимися.","город-курорт Сочи "]
["Абинский район,\nвсего район и поселения",19,{"$f":"SUM(C28:C36)","v":0},0,0,0,0,0,0,"В связи с низкой нормативной стоимостью услуг по отлову и содержанию безнадзорных животных не нашлось исполнителя оказания услуг.",null,"В связи с низкой нормативной стоимостью услуг по отлову и содержанию безнадзорных животных не нашлось исполнителя оказания услуг.","Абинский район,\nвсего район и поселения"]
["Абинский район ",19,null,null,null,null,null,null,null,null,null,null,"Абинский район "]
[" Абинское г/п"]
[" Ахтырское г/п"]
[" Варнавинское с/п"]
[" Мингрельское с/п"]
[" Ольгинское с/п"]
[" Светлогорское с/п"]
[" Федоровское с/п"]
[" Холмское с/п"]
["Апшеронский район,\nвсего район и поселения",37,{"$f":"SUM(C38:C50)","v":37},0,0,0,0,0,0,"По итогам запроса котировок заключен МК № 95 от 08.06.18 с ИП Колосовой Екатериной Александровной на сумму 44 400,00 руб.  на отлов  безнадзорных животных . Запрос котировок на услуги по содержанию безнадзорных животных признан несостоявшимся по причине отсутствия заявок на участие (протокол № 0818300022718000138 от 31.05.18). Внесены изменения в план закупок и план-график закупок в части оставшихся средств. Результаты торгов будут известны в 4 кв.2018 г.",null,"По итогам запроса котировок заключен МК № 95 от 08.06.18 с ИП Колосовой Екатериной Александровной на сумму 44 400,00 руб.  на отлов  безнадзорных животных . Запрос котировок на услуги по содержанию безнадзорных животных признан несостоявшимся по причине отсутствия заявок на участие (протокол № 0818300022718000138 от 31.05.18). Внесены изменения в план закупок и план-график закупок в части оставшихся средств. Результаты торгов будут известны в 4 кв.2018 г.","Апшеронский район,\nвсего район и поселения"]
["Апшеронский район",37,37,null,null,null,null,null,null,null,null,null,"Апшеронский район"]
[" Апшеронское г/п"]
[" Кабардинское с/п"]
[" Кубанское с/п"]
[" Куринское с/п"]
[" Мезмайское с/п"]
[" Нефтегорское г/п"]
[" Нижегородское г/п"]
[" Новополянское с/п"]
[" Отдаленное с/п"]
[" Тверское с/п"]
[" Хадыженское г/п"]
[" Черниговское с/п"]
["Белоглинский район,\nвсего район и поселения ",13,{"$f":"SUM(C52:C56)","v":0},0,0,0,0,0,0,"Ведется работа по подбору коммерческих предложений для проведения эл.аукциона.Коммерческие предложения не поступили. В связи с вышеизложенным проведение эл.аукциона не предоставляется возможным.",null,"Ведется работа по подбору коммерческих предложений для проведения эл.аукциона.Коммерческие предложения не поступили. В связи с вышеизложенным проведение эл.аукциона не предоставляется возможным.","Белоглинский район,\nвсего район и поселения "]
["Белоглинский район",13,null,null,null,null,null,null,null,null,null,null,"Белоглинский район"]
[" Белоглинское с/п"]
[" Новопавловское с/п"]
[" Успенское с/п"]
[" Центральное с/п"]
["Белореченский район,\nвсего район и поселения",157,{"$f":"SUM(C58:C69)","v":0},0,0,0,0,0,0,"Проведен эл.аукцион. Согласно протоколу № 236А от 18.06.18  признан несостоявшимся по причине отсутствия заявок от участников.",null,"Проведен эл.аукцион. Согласно протоколу № 236А от 18.06.18  признан несостоявшимся по причине отсутствия заявок от участников.","Белореченский район,\nвсего район и поселения"]
["Белореченский район",157,null,null,null,null,null,null,null,null,null,null,"Белореченский район"]
[" Белореченское г/п"]
[" Бжедуховское с/п"]
[" Великовечненское с/п"]
[" Дружненское с/п"]
[" Первомайское с/п"]
[" Пшехское с/п"]
[" Родниковское с/п"]
[" Рязанское с/п"]
[" Школьненское с/п"]
[" Черниговское с/п"]
[" Южненское с/п"]
["Брюховецкий район,\nвсего район и поселения",5,{"$f":"SUM(C71:C79)","v":0},0,0,0,0,0,0,"Повторно размещено извещение о проведении запроса котировок № 0118300003118000107 от 26.09.18. Сроки окончания приема заявок 3.10.18",null,"Повторно размещено извещение о проведении запроса котировок № 0118300003118000107 от 26.09.18. Сроки окончания приема заявок 3.10.18","Брюховецкий район,\nвсего район и поселения"]
["Брюховецкий район",5,null,null,null,null,null,null,null,null,null,null,"Брюховецкий район"]
[" Батуринское с/п"]
[" Большебейсугское с/п"]
[" Брюховецкое с/п"]
[" Новоджерелиевское с/п"]
[" Новосельское с/п"]
[" Переясловское с/п"]
[" Свободненское с/п"]
[" Чепигинское с/п"]
["Выселковский район,\nвсего район и поселения",12,{"$f":"SUM(C81:C91)","v":0},0,0,0,0,0,0,"Дважды размещено на официальном сайте  извещение о проведении запроса котировок. Запрос котировок в обоих случаях  признан несостоявшимся  по причине отсутствия заявок от участников.",null,"Дважды размещено на официальном сайте  извещение о проведении запроса котировок. Запрос котировок в обоих случаях  признан несостоявшимся  по причине отсутствия заявок от участников.","Выселковский район,\nвсего район и поселения"]
["Выселковский район",12,null,null,null,null,null,null,null,null,null,null,"Выселковский район"]
[" Бейсугское с/п"]
[" Бейсужекское с/п"]
[" Березанское с/п"]
[" Бузиновское с/п"]
[" Выселковское с/п"]
[" Газырское с/п"]
[" Ирклиевское с/п"]
[" Крупское с/п"]
[" Новобейсугское с/п"]
[" Новомалороссийское с/п"]
["Гулькевичский район,\nвсего район и поселения",252,{"$f":"SUM(C93:C108)","v":0},0,0,0,0,0,0,"Проведено  размещение извещения и документации о проведении эл.аукциона. Администрацией МО было принято  решение  ( 4 раза) о продлении срока подачи заявок от участников.",null,"Проведено  размещение извещения и документации о проведении эл.аукциона. Администрацией МО было принято  решение  ( 4 раза) о продлении срока подачи заявок от участников.","Гулькевичский район,\nвсего район и поселения"]
["Гулькевичский район",252,null,null,null,null,null,null,null,null,null,null,"Гулькевичский район"]
[" Гулькевичское г/п"]
[" Гирейское г/п"]
[" Венцы-Заря с/п"]
[" Комсомольское с/п"]
[" Красносельское г/п"]
[" Кубань с/п"]
[" Николенское с/п"]
[" Новоукраинское с/п"]
[" Отрадно-Кубанское с/п"]
[" Отрадно-Ольгинское с/п"]
[" Пушкинское с/п"]
[" Скобелевское с/п"]
[" Соколовское с/п"]
[" Союз 4-х хуторов с/п"]
[" Тысячное с/п"]
["Динской район,\nвсего район и поселения",252,{"$f":"SUM(C110:C120)","v":0},0,0,0,0,0,0,"Заключен МК  № 246 от 04.09.18 с ИП Колосовой Екатериной Александровной на сумму 332640,00 руб.",null,"Заключен МК  № 246 от 04.09.18 с ИП Колосовой Екатериной Александровной на сумму 332640,00 руб.","Динской район,\nвсего район и поселения"]
["Динской район",252,null,null,null,null,null,null,null,null,null,null,"Динской район"]
[" Васюринское с/п"]
[" Динское с/п"]
[" Красносельское с/п"]
[" Мичуринское с/п"]
[" Нововеличковское с/п"]
[" Новотитаровское с/п"]
[" Первореченское с/п"]
[" Пластуновское с/п"]
[" Старомышастовское с/п"]
[" Южно-Кубанское с/п"]
["Ейский район,\nвсего район и поселения",374,{"$f":"SUM(C122:C133)","v":0},0,0,0,0,0,0,"Вносятся изменения в бюджетную роспись, план закупок, план-график. Проведение эл.аукциона запланировано  на октябрь 2018 года.",null,"Вносятся изменения в бюджетную роспись, план закупок, план-график. Проведение эл.аукциона запланировано  на октябрь 2018 года.","Ейский район,\nвсего район и поселения"]
["Ейский район",374,null,null,null,null,null,null,null,null,null,null,"Ейский район"]
[" Александровское с/п"]
[" Должанское с/п"]
[" Ейское г/п"]
[" Ейское с/п"]
[" Камышеватское с/п"]
[" Копанское с/п"]
[" Красноармейское с/п"]
[" Кухаривское с/п"]
[" Моревское с/п"]
[" Трудовое с/п"]
[" Ясенское с/п"]
["Кавказский район,\nвсего район и поселения",334,{"$f":"SUM(C135:C144)","v":0},0,0,0,0,0,0,"Внесены изменения в план-график размещения закупок. Предполагаемые сроки освоения субвенции  4-й кв.2018 г.",null,"Внесены изменения в план-график размещения закупок. Предполагаемые сроки освоения субвенции  4-й кв.2018 г.","Кавказский район,\nвсего район и поселения"]
["Кавказский район",334,null,null,null,null,null,null,null,null,null,null,"Кавказский район"]
[" Дмитриевское с/п"]
[" им. М. Горького с/п"]
[" Кавказское с/п"]
[" Казанское с/п"]
[" Кропоткинское г/п"]
[" Лосевское с/п"]
[" Мирское с/п"]
[" Привольное с/п"]
[" Темижбекское с/п"]
["Калининский район,\nвсего район и поселения",9,{"$f":"SUM(C146:C154)","v":0},0,0,0,0,0,0,"В результате проведенного мониторинга стоимости услуг, согласно коммерческим предложениям составила 1600 руб.за одну голову.",null,"В результате проведенного мониторинга стоимости услуг, согласно коммерческим предложениям составила 1600 руб.за одну голову.","Калининский район,\nвсего район и поселения"]
["Калининский район",9,null,null,null,null,null,null,null,null,null,null,"Калининский район"]
[" Бойкопонурское с/п"]
[" Гривенское с/п"]
[" Гришковское с/п"]
[" Джумайловское с/п"]
[" Калининское с/п"]
[" Куйбышевское с/п"]
[" Новониколаевское с/п"]
[" Старовеличковское с/п"]
["Каневской район,\nвсего район и поселения",41,{"$f":"SUM(C156:C165)","v":0},0,0,0,0,0,0,"Документы на  проведения эл.аукциона подготовлены, начальная (максимальная) цена контракта определена тарифным методом. Проведен аукцион в эл.форме. Заключен МК № 0318300009618000104-0091903-01 от 20.08.18 на сумму 42400,00 руб. МК был расторгнут по взаимному согласию сторон 27.09.18 г. В октябре 2018 года планируется заключение прямого договора .",null,"Документы на  проведения эл.аукциона подготовлены, начальная (максимальная) цена контракта определена тарифным методом. Проведен аукцион в эл.форме. Заключен МК № 0318300009618000104-0091903-01 от 20.08.18 на сумму 42400,00 руб. МК был расторгнут по взаимному согласию сторон 27.09.18 г. В октябре 2018 года планируется заключение прямого договора .","Каневской район,\nвсего район и поселения"]
["Каневской район",41,null,null,null,null,null,null,null,null,null,null,"Каневской район"]
[" Каневское с/п"]
[" Красногвардейское с/п"]
[" Кубанскостепное с/п"]
[" Новодерявянковское с/п"]
[" Новоминское с/п"]
[" Привольненское с/п"]
[" Придорожное с/п"]
[" Стародеревянковское с/п"]
[" Челбасское с/п"]
["Кореновский район,\nвсего район и поселения",252,{"$f":"SUM(C167:C177)","v":0},0,0,0,0,0,0," Заключен МК № Ф.2018.426611 от 10.09.18 с ИП Е.А. Колосовой.  МК по соглашению сторон был расторгнут от 21.09.18 г.Внесены изменения в план-график для повторного  размещения закупки путем запроса котировок.",null," Заключен МК № Ф.2018.426611 от 10.09.18 с ИП Е.А. Колосовой.  МК по соглашению сторон был расторгнут от 21.09.18 г.Внесены изменения в план-график для повторного  размещения закупки путем запроса котировок.","Кореновский район,\nвсего район и поселения"]
["Кореновский район",252,null,null,null,null,null,null,null,null,null,null,"Кореновский район"]
[" Братковское с/п"]
[" Бураковское с/п"]
[" Дядьковское с/п"]
[" Журавское с/п"]
[" Кореновское г/п"]
[" Новоберезанское с/п"]
[" Платнировское с/п"]
[" Пролетарское с/п"]
[" Раздольненское с/п"]
[" Сергиевское с/п"]
["Красноармейский район,\nвсего район и поселения",135,{"$f":"SUM(C179:C189)","v":0},0,0,0,0,0,0,"В результате проведенного мониторинга стоимости услуг, согласно коммерческим предложениям цена высокая.",null,"В результате проведенного мониторинга стоимости услуг, согласно коммерческим предложениям цена высокая.","Красноармейский район,\nвсего район и поселения"]
["Красноармейский район",135,null,null,null,null,null,null,null,null,null,null,"Красноармейский район"]
[" Ивановское с/п"]
[" Марьянское с/п"]
[" Новомышастовское с/п"]
[" Октябрьское с/п"]
[" Полтавское с/п"]
[" Протичкинское с/п"]
[" Староджерелиевское с/п"]
[" Старонижнестеблиевское с/п"]
[" Трудобеликовское с/п"]
[" Чебургольское с/п"]
["Крыловский район,\nвсего район и поселения",81,{"$f":"SUM(C191:C197)","v":0},0,0,0,0,0,0,"Проведение закупки в соответствии с планом- графиком закупок запланировано на  октябрь месяц 2018 года. Определяется начальная максимальная цена контракта.",null,"Проведение закупки в соответствии с планом- графиком закупок запланировано на  октябрь месяц 2018 года. Определяется начальная максимальная цена контракта.","Крыловский район,\nвсего район и поселения"]
["Крыловский район",81,null,null,null,null,null,null,null,null,null,null,"Крыловский район"]
[" Крыловское с/п"]
[" Кугоейское с/п"]
[" Новопашковское с/п"]
[" Новосергиевское с/п"]
[" Октябрьское с/п"]
[" Шевченковское с/п"]
["Крымский район,\nвсего район и поселения",56,{"$f":"SUM(C199:C210)","v":0},0,0,0,0,0,0,"Запрос котировок признан несостоявшимся по причине отсутствия заявок от участников.",null,"Запрос котировок признан несостоявшимся по причине отсутствия заявок от участников.","Крымский район,\nвсего район и поселения"]
["Крымский район",56,null,null,null,null,null,null,null,null,null,null,"Крымский район"]
[" Адагумское с/п"]
[" Варениковское с/п"]
[" Кеслеровское с/п"]
[" Киевское с/п"]
[" Крымское г/п"]
[" Мерчанское с/п"]
[" Молдаванское с/п"]
[" Нижнебаканское с/п"]
[" Пригородное с/п"]
[" Троицкое с/п"]
[" Южное с/п"]
["Курганинский район,\nвсего район и поселения",61,{"$f":"SUM(C212:C222)","v":0},0,0,0,0,0,0,"8 мая был опубликован эл.аукцион, 19 июля  был опубликован повторный эл. аукцион.По окончании срока подачи заявок, на участие в аукционе заявок не поступило. В октябре 2018 г. планируется опубликовать третий эл.аукцион..",null,"8 мая опубликован эл.аукцион. Исполнителей заявлено не было. В июле месяце планируется повторный эл. аукцион.По окончании срока подачи заявок, на участие в аукционе заявок не поступило. В октябре 2018 г. планируется опубликовать третий эл.аукцион.","Курганинский район,\nвсего район и поселения"]
["Курганинский район",61,null,null,null,null,null,null,null,null,null,null,"Курганинский район"]
[" Безводное с/п"]
[" Воздвиженское с/п"]
[" Константиновское с/п"]
[" Курганинское г/п"]
[" Михайловское с/п"]
[" Новоалексеевское с/п"]
[" Октябрьское с/п"]
[" Петропавловское с/п"]
[" Родниковское с/п"]
[" Темиргоевское с/п"]
["Кущевский район,\nвсего район и поселения",34,{"$f":"SUM(C224:C236)","v":0},0,0,0,0,0,0,"Внесены изменения в план-график размещения закупок. Объявлены два запроса котировок № 0318300025818000016 от 24.07.18, № 0318300025818000017 от 30.08.18. Предпологаемые сроки использования субвенций- 4 кв.2018 года.",null,"Внесены изменения в план-график размещения закупок. Объявлены два запроса котировок № 0318300025818000016 от 24.07.18, № 0318300025818000017 от 30.08.18. Предпологаемые сроки использования субвенций- 4 кв.2018 года.","Кущевский район,\nвсего район и поселения"]
["Кущевский район",34,null,null,null,null,null,null,null,null,null,null,"Кущевский район"]
[" Глебовское с/п"]
[" Ильинское с/п"]
[" Кисляковское с/п"]
[" Краснополянское с/п"]
[" Красносельское с/п"]
[" Кущевское с/п"]
[" Новомихайловское с/п"]
[" Первомайское с/п"]
[" Полтавченское с/п"]
[" Раздольненское с/п"]
[" Среднечубуркское с/п"]
[" Шкуринское с/п"]
["Лабинский район,\nвсего район и поселения",15,{"$f":"SUM(C238:C251)","v":0},0,0,0,0,0,0,"В результате проведенного мониторинга стоимости услуг, согласно коммерческим предложениям составила 1600 руб.за одну голову.Субвенция не освоена, так как выделенная субвенция крайне недостаточна для выполнения требуемого комплекса работ.",null,"В результате проведенного мониторинга стоимости услуг, согласно коммерческим предложениям составила 1600 руб.за одну голову.Субвенция не освоена, так как выделенная субвенция крайне недостаточна для выполнения требуемого комплекса работ.","Лабинский район,\nвсего район и поселения"]
["Лабинский район",15,null,null,null,null,null,null,null,null,null,null,"Лабинский район"]
[" Ахметовское с/п"]
[" Владимирское с/п"]
[" Вознесенское с/п"]
[" Зассовское с/п"]
[" Каладжинское с/п"]
[" Лабинское г/п"]
[" Лучевое с/п"]
[" Отважненское с/п"]
[" Первосинюхинское с/п"]
[" Сладковское с/п"]
[" Упорненское с/п"]
[" Харьковское с/п"]
[" Чамлыкское с/п"]
["Ленинградский район,\nвсего район и поселения",117,{"$f":"SUM(C253:C265)","v":0},0,0,0,0,0,0,"Размещены извещения о проведении закупки № 0318300422718000058 от 10.07.18, № 0318300422718000082 от 03.09.18. По результатам которых запрос котировок признаны несостоявшимися.",null,"Размещены извещения о проведении закупки № 0318300422718000058 от 10.07.18, № 0318300422718000082 от 03.09.18. По результатам которых запрос котировок признаны несостоявшимися.","Ленинградский район,\nвсего район и поселения"]
["Ленинградский район",117,null,null,null,null,null,null,null,null,null,null,"Ленинградский район"]
[" Белохуторское с/п"]
[" Западное с/п"]
[" Коржовское с/п"]
[" Крыловское с/п"]
[" Куликовское с/п"]
[" Восточное с/п"]
[" Ленинградское с/п"]
[" Новоплатнировское с/п"]
[" Новоуманское с/п"]
[" Образцовое с/п"]
[" Первомайское с/п"]
[" Уманское с/п"]
["Мостовский район,\nвсего район и поселения",23,{"$f":"SUM(C267:C281)","v":0},0,0,0,0,0,0,"Ведется работа по подбору коммерческих предложений для проведения эл.аукциона. Организовано проведение конкурсной процедуры, извещение о проведении запроса котировок бало разещено на оф.сайте  28.09.18 г. № 0818600004218000259. Прием заявок на участие заканчивается 5 октября 2018 года.",null,"Ведется работа по подбору коммерческих предложений для проведения эл.аукциона. Организовано проведение конкурсной процедуры, извещение о проведении запроса котировок бало разещено на оф.сайте  28.09.18 г. № 0818600004218000259. Прием заявок на участие заканчивается 5 октября 2018 года.","Мостовский район,\nвсего район и поселения"]
["Мостовский район",23,null,null,null,null,null,null,null,null,null,null,"Мостовский район"]
[" Андрюковское с/п"]
[" Баговское с/п"]
[" Беноковское с/п"]
[" Бесленеевское с/п"]
[" Губское с/п"]
[" Костромское с/п"]
[" Краснокутское с/п"]
[" Махошевское с/п"]
[" Мостовское г/п"]
[" Переправненское с/п"]
[" Псебайское г/п"]
[" Унароковское с/п"]
[" Шедокское с/п"]
[" Ярославское с/п"]
["Новокубанский район,\nвсего район и поселения",130,{"$f":"SUM(C283:C292)","v":0},0,0,0,0,0,0,"Ведется работа по подбору коммерческих предложений для проведения эл.аукциона. На основании представленных коммерческий предложений провести эл. аукцион не предоставляется возможным. По причине отсутствия пунктов временного содержания животных. ",null,"Ведется работа по подбору коммерческих предложений для проведения эл.аукциона. На основании представленных коммерческий предложений провести эл. аукцион не предоставляется возможным. По причине отсутствия пунктов временного содержания животных. ","Новокубанский район,\nвсего район и поселения"]
["Новокубанский район",130,null,null,null,null,null,null,null,null,null,null,"Новокубанский район"]
[" Бесскорбненское с/п"]
[" Верхнекубанское с/п"]
[" Ковалевское с/п"]
[" Ляпинское с/п"]
[" Новокубанское г/п"]
[" Новосельское с/п"]
[" Прикубанское с/п"]
[" Прочноокопское с/п"]
[" Советское с/п"]
["Новопокровский район,\nвсего район и поселения",10,{"$f":"SUM(C294:C302)","v":0},0,0,0,0,0,0," Отсутствие заявок от  населения на выполнение работ по отлову безнадзорных животных.",null," Отсутствие заявок от  населения на выполнение работ по отлову безнадзорных животных.","Новопокровский район,\nвсего район и поселения"]
["Новопокровский район",10,null,null,null,null,null,null,null,null,null,null,"Новопокровский район"]
[" Горькобалковское с/п"]
[" Ильинское с/п"]
[" Калниболотское с/п"]
[" Кубанское с/п"]
[" Незамаевское с/п"]
[" Новоивановское с/п"]
[" Новопокровское с/п"]
[" Покровское с/п"]
["Отрадненский район,\nвсего район и поселения",20,{"$f":"SUM(C304:C318)","v":0},0,0,0,0,0,0,"Внесены изменения в план-график размещения закупок. Размещено извещение о проведении эл.аукциона от 31.08.18 г. Аукцион признан несостоявшимся, по окончании  не поступило ни одной заявки. В октябре  планируется повторно разместить извещение о проведении эл.аукциона.",null,"Внесены изменения в план-график размещения закупок. Размещено извещение о проведении эл.аукциона от 31.08.18 г. Аукцион признан несостоявшимся, по окончании  не поступило ни одной заявки. В октябре  планируется повторно разместить извещение о проведении эл.аукциона.","Отрадненский район,\nвсего район и поселения"]
["Отрадненский район",20,null,null,null,null,null,null,null,null,null,null,"Отрадненский район"]
[" Бесстрашненское с/п"]
[" Благодарненское с/п"]
[" Красногвардейское с/п"]
[" Малотенгинское с/п"]
[" Маякское с/п"]
[" Надежненское с/п"]
[" Отрадненское с/п"]
[" Передовское с/п"]
[" Подгорненское с/п"]
[" Подгорносинюхинское с/п"]
[" Попутненское с/п"]
[" Рудьевское с/п"]
[" Спокойненское с/п"]
[" Удобненское с/п"]
["Павловский район,\nвсего район и поселения",59,{"$f":"SUM(C320:C331)","v":0},0,0,0,0,0,0,"На текущую дату документы для проведения аукциона в эл.форме опубликованы на сайте. Аукцион состоится 11 октября 2018 г.",null,"На текущую дату документы для проведения аукциона в эл.форме опубликованы на сайте. Аукцион состоится 11 октября 2018 г.","Павловский район,\nвсего район и поселения"]
["Павловский район",59,null,null,null,null,null,null,null,null,null,null,"Павловский район"]
[" Атаманское с/п"]
[" Веселовское с/п"]
[" Незамаевское с/п"]
[" Новоулешковское с/п"]
[" Новопетровское с/п"]
[" Новопластуновское с/п"]
[" Павловское с/п"]
[" Северное с/п"]
[" Среднечелбасское"]
[" Староулешковское с/п"]
["Упорненское с/п"]
["Приморско-Ахтарский район,\nвсего район и поселения",74,{"$f":"SUM(C333:C342)","v":0},0,0,0,0,0,0,"31 мая 2018 г размещен план- график закупок.31 мая 2018 г размещен план-график закупок. Заключены МК № 61 от 07.09.18 на сумму 97 799,56 руб., № 62 от 07.09.18 на сумму 97799,56 с ИП Е.А. Колосовой на оказание услуг по отлову и содержанию безнадзорных животных.",null,"31 мая 2018 г размещен план- график закупок.","Приморско-Ахтарский район,\nвсего район и поселения"]
["Приморско-Ахтарский район",74,null,null,null,null,null,null,null,null,null,null,"Приморско-Ахтарский район"]
[" Ахтарское с/п"]
[" Бородинское с/п"]
[" Бриньковское с/п"]
[" Новопокровское с/п"]
[" Ольгинское с/п"]
[" Приазовское с/п"]
["Приморско-Ахтарское г/п"]
[" Свободное с/п"]
[" Степное с/п"]
["Северский район,\nвсего район и поселения",109,{"$f":"SUM(C344:C356)","v":0},0,0,0,0,0,0,"В течение полугодия 2018 года роводилась работа по определению исполнителя. На  отчетную дату исполнителем является ИП Е.А.Колосова. Контракт направлен исполнителю для подписания.",null,"В течение полугодия 2018 года роводилась работа по определению исполнителя. На  отчетную дату исполнителем является ИП Е.А.Колосова. Контракт направлен исполнителю для подписания.","Северский район,\nвсего район и поселения"]
["Северский район",109,null,null,null,null,null,null,null,null,null,null,"Северский район"]
[" Азовское с/п"]
[" Афипское г/п"]
[" Григорьевское с/п"]
[" Ильское г/п"]
[" Калужское с/п"]
[" Львовское с/п"]
[" Михайловское с/п"]
[" Новодмитриевское с/п"]
[" Северское с/п"]
[" Смоленское с/п"]
[" Черноморское г/п"]
[" Шабановское с/п"]
["Славянский район,\nвсего район и поселения",316,{"$f":"SUM(C358:C373)","v":0},0,0,0,0,0,0,"В настоящее время проводится прием котировочных заявок на определение  исполнителя муниципального контракта.",null,"В настоящее время проводится прием котировочных заявок на определение  исполнителя муниципального контракта.","Славянский район,\nвсего район и поселения"]
["Славянский район",316,null,null,null,null,null,null,null,null,null,null,"Славянский район"]
[" Анастасиевское с/п   "]
[" Ачуевское с/п"]
[" Голубая Нива с/п"]
[" Забойское с/п "]
[" Кировское с/п"]
[" Коржевское с/п "]
[" Маевское с/п  "]
[" Петровское с/п"]
[" Прибрежное с/п "]
[" Прикубанское с/п"]
[" Протокское с/п "]
[" Рисовое с/п "]
[" Славянское г/п"]
[" Целинное с/п"]
[" Черноерковское с/п"]
["Староминский район,\nвсего район и поселения",101,{"$f":"SUM(C375:C380)","v":0},0,0,0,0,0,0,null,null,null,"Староминский район,\nвсего район и поселения"]
["Староминский район",101,null,null,null,null,null,null,null,null,null,null,"Староминский район"]
[" Канеловское с/п"]
[" Рассветовское с/п"]
[" Куйбышевское с/п"]
[" Новоясенское с/п"]
[" Староминское с/п"]
["Тбилисский район,\nвсего район и поселения",44,{"$f":"SUM(C382:C390)","v":0},0,0,0,0,0,0,"Заключение муниципального контракта не предоставляется возможным по причине отсутствия  пунктов временного содержания безнадзорных животных. Подготовлен пакет документов  на оказание услуг по отлову безнадзорных животных на участие в эл.аукционе. Проведение которого запланировано на первую декаду октября 2018 г.",null,"Заключение муниципального контракта не предоставляется возможным по причине отсутствия  пунктов временного содержания безнадзорных животных. Подготовлен пакет документов  на оказание услуг по отлову безнадзорных животных на участие в эл.аукционе. Проведение которого запланировано на первую декаду октября 2018 г.","Тбилисский район,\nвсего район и поселения"]
["Тбилисский район",44,null,null,null,null,null,null,null,null,null,null,"Тбилисский район"]
[" Алексее-Тенгинское с/п"]
[" Ванновское с/п"]
[" Геймановское с/п"]
[" Ловлинское с/п"]
[" Марьинское с/п"]
[" Нововладимировское с/п"]
[" Песчаное с/п"]
[" Тбилисское с/п"]
["Темрюкский район,\nвсего район и поселения",176,{"$f":"SUM(C392:C404)","v":0},0,0,0,0,0,0,null,null,null,"Темрюкский район,\nвсего район и поселения"]
["Темрюкский район",176,null,null,null,null,null,null,null,null,null,null,"Темрюкский район"]
[" Ахтанизовское с/п"]
[" Вышестиблиевское с/п"]
[" Голубицкое с/п"]
[" Запорожское с/п"]
[" Краснострельское с/п"]
[" Курчанское с/п"]
[" Новотаманское с/п"]
[" Сенное с/п"]
[" Старотитаровское с/п"]
[" Таманское с/п"]
[" Темрюкское г/п"]
[" Фонталовское с/п"]
["Тимашевский район,\nвсего район и поселения",165,{"$f":"SUM(C406:C416)","v":0},0,0,0,0,0,0,"Ведется работа по внесению соответствующих изменений в муниципальную программу.",null,"Ведется работа по внесению соответствующих изменений в муниципальную программу.","Тимашевский район,\nвсего район и поселения"]
["Тимашевский район",165,null,null,null,null,null,null,null,null,null,null,"Тимашевский район"]
["Дербентское с/п"]
["Днепровское с/п"]
[" с/п Кубанец"]
[" Медведовское с/п"]
[" Незаймановское с/п"]
[" Новокорсунское с/п"]
[" Новоленинское с/п"]
[" Поселковое с/п"]
[" Роговское с/п"]
["Тимашевское г/п"]
["Тихорецкий район,\nвсего район и поселения",164,{"$f":"SUM(C418:C431)","v":0},0,0,0,0,0,0,"15 мая ,14 июня,30 июля,27 августа,28 сентября 2018 размещена закупка. Заявок от поставщиков на участие в эл.аукционе не поступало.Размещение заявок планируется    администрацией ежемесячно до определения победителя.",null,"15 мая ,14 июня,30 июля,27 августа,28 сентября 2018 размещена закупка. Заявок от поставщиков на участие в эл.аукционе не поступало.Размещение заявок планируется    администрацией ежемесячно до определения победителя.","Тихорецкий район,\nвсего район и поселения"]
["Тихорецкий район",164,null,null,null,null,null,null,null,null,null,null,"Тихорецкий район"]
["Алексеевское с/п"]
[" Архангельское с/п"]
[" Братское с/п"]
[" Еремизино-Борисовское с/п"]
[" Крутое с/п"]
[" Новорождественское с/п"]
[" Отрадненское с/п"]
[" Парковское с/п"]
[" Терновское с/п"]
[" Тихорецкое г/п"]
[" Фастовецкое с/п"]
[" Хоперское с/п"]
[" Юго-Северное с/п"]
["Туапсинский район,\nвсего район и поселения",847,{"$f":"SUM(C433:C443)","v":0},0,0,0,0,0,0," 21 июня 2018 размещена закупка. Заявок от поставщиков на участие в эл.аукционе не поступало. Аукцион признан несостоявшимся.",null," 21 июня 2018 размещена закупка. Заявок от поставщиков на участие в эл.аукционе не поступало. Аукцион признан несостоявшимся.","Туапсинский район,\nвсего район и поселения"]
["Туапсинский район",847,null,null,null,null,null,null,null,null,null,null,"Туапсинский район"]
[" Вельяминовское с/п"]
[" Георгиевское с/п"]
[" Джубгское г/п"]
[" Небугское с/п"]
[" Новомихайловское г/п"]
[" Октябрьское с/п"]
[" Тенгинское с/п"]
[" Туапсинское г/п"]
[" Шаумянское с/п"]
[" Шепсинское с/п"]
["Успенский район,\nвсего район и поселения",15,{"$f":"SUM(C445:C455)","v":0},0,0,0,0,0,0,"Внесены изменения в план-график размещения закупок",null,"Внесены изменения в план-график размещения закупок","Успенский район,\nвсего район и поселения"]
["Успенский район",15,null,null,null,null,null,null,null,null,null,null,"Успенский район"]
[" Веселовское с/п"]
[" Вольненское с/п"]
[" Коноковское с/п"]
[" Кургоковское с/п"]
[" Маламинское с/п"]
[" Николаевское с/п"]
[" Трехсельское с/п"]
[" Убеженское с/п"]
[" Урупское с/п"]
[" Успенское с/п"]
["Усть-Лабинский район,\nвсего район и поселения",215,{"$f":"SUM(C457:C472)","v":0},0,0,0,0,0,0,"Ведется работа по подготовке  документация для участия в аукционе.",null,"Ведется работа по подготовке  документация для участия в аукционе.","Усть-Лабинский район,\nвсего район и поселения"]
["Усть-Лабинский район",215,null,null,null,null,null,null,null,null,null,null,"Усть-Лабинский район"]
[" Александровское с/п"]
[" Братское с/п"]
[" Вимовское с/п"]
[" Воронежское с/п"]
[" Восточное с/п"]
[" Двубратское с/п"]
[" Железное с/п"]
[" Кирпильское с/п"]
[" Ладожское с/п"]
[" Ленинское с/п"]
[" Некрасовское с/п"]
[" Новолабинское с/п"]
[" Суворовское с/п"]
[" Тенгинское с/п"]
[" Усть-Лабинское г/п "]
["Щербиновский район,\nвсего район и поселения",32,{"$f":"SUM(C474:C482)","v":0},0,0,0,0,0,0,"Готовятся изменения в план-график размещения закупок. ",null,"Готовятся изменения в план-график размещения закупок. ","Щербиновский район,\nвсего район и поселения"]
["Щербиновский район",32]
[" Глафировское с/п"]
[" Ейскоукрепленское с/п"]
[" Екатериновское с/п"]
[" Николаевское с/п"]
[" Новощербиновское с/п"]
[" Старощербиновское с/п"]
[" Шабельское с/п"]
[" Щербиновское с/п"]
[null,{"$f":"B20+B21+B22+B23+B24+B25+B26+B27+B37+B51+B57+B70+B80+B92+B109+B121+B134+B145+B155+B166+B178+B190+B198+B211+B223+B237+B252+B266+B282+B303+B319+B332+B343+B357+B374+B381+B391+B405+B417+B432+B444+B456+B473+B293","v":10918}]
["1) Отчет предоставляется в случае если соглашение, заключенное с муниципальным образованием, предусматривает показатели результативности предоставления межбюджетного трансферта."]
["2) При наличии в соглашении с муниципальным образованием более 1-го показателя результативности предоставления межбюджетного трансферта отчет дополняется необходимым количеством граф."]
["3) В случае если достижение показателя результативности предоставления межбюджетного трансферта предусмотрено в году следующем за отчетным, в графе делается соответствующая отметка о сроке достижения показателя."]
["4) В соответствии с заключенным соглашением между главным распорядителем (распорядителем) средств краевого бюджета и муниципальным образованием о предоставлении межбюджетного трансферта из краевого бюджета."]
["Примечание. В форме не допускается исключать и добавлять графы и скрывать строки."]
[]
[]
["Руководитель органа исполнительной власти, структурного подразделения администрации Краснодарского края ",null,null,null,"___________________",null,null,"___________________________"]
[null,null,null,null,"(подпись)",null,null,null,"(ФИО)"]
["Исполнитель, тел."]